bitfinex-derivatives/quotes_SOLF0:USTF0_20251006
["timestamp","ask_amount","ask_price","bid_price","bid_amount"]
[1759717983482,8.07725877,230.62,230.58,7.56]
[1759717984078,8.07725877,230.62,230.58,11.1814366]
[1759717984479,8.07725877,230.62,230.58,3.6214366]
[1759717984679,6.83,230.61,230.58,3.6214366]
[1759717984880,1.24725877,230.62,230.59,7.56]
[1759717985175,1.24725877,230.62,230.58,3.6214366]
[1759717985176,6.83,230.64,230.6,3.6214366]
[1759717985375,8.07725877,230.65,230.59,3.6214366]
[1759717985982,8.07725877,230.65,230.6,3.6214366]
[1759717986285,107.62,230.66,230.6,3.6214366]
[1759717987390,108.86725877,230.68,230.6,3.6214366]
[1759717987589,108.86725877,230.68,230.61,3.6214366]
[1759717987785,3.8998,230.71,230.62,11.1814366]
[1759717988089,5.14705877,230.71,230.62,11.1814366]
[1759717988485,1.24725877,230.71,230.62,15.0826366]
[1759717989181,1.24725877,230.71,230.64,3.6214366]
[1759717990584,1.24725877,230.71,230.65,11.1814366]
[1759717991691,5.14715877,230.71,230.65,11.1814366]
[1759717991887,6.83,230.67,230.64,3.6214366]
[1759717992087,8.07725877,230.68,230.62,3.6214366]
[1759717992482,6.83,230.66,230.62,3.6214366]
[1759717992684,6.83,230.66,230.62,11.1814366]
[1759717992991,1.24725877,230.68,230.62,11.1814366]
[1759717993584,6.83,230.7,230.62,11.1814366]
[1759717993585,1.24725877,230.69,230.62,11.1814366]
[1759717993785,8.07725877,230.69,230.64,11.1814366]
[1759717994087,1.24725877,230.72,230.65,3.6214366]
[1759717994591,1.24725877,230.72,230.66,3.6214366]
[1759717995491,1.24725877,230.72,230.65,3.6214366]
[1759717995796,1.24725877,230.72,230.66,3.6214366]
[1759717996291,1.24725877,230.72,230.65,3.6214366]
[1759717996493,6.83,230.71,230.64,11.1814366]
[1759717997290,6.83,230.71,230.65,3.6214366]
[1759717999193,6.83,230.71,230.64,11.1814366]
[1759717999686,10.7299,230.71,230.64,11.1814366]
[1759718000086,10.7299,230.71,230.65,3.6214366]
[1759718000285,3.9002,230.69,230.64,11.1814366]
[1759718000486,3.9002,230.69,230.65,7.63]
[1759718001291,6.83,230.66,230.64,3.6214366]
[1759718001497,6.83,230.66,230.62,3.6214366]
[1759718001696,6.83,230.66,230.62,11.2514366]
[1759718002602,3.9006,230.67,230.62,3.6214366]
[1759718002804,3.9001,230.69,230.63,11.2514366]
[1759718002999,3.9001,230.69,230.64,11.2514366]
[1759718003201,170.23121287,230.74,230.65,7.63]
[1759718003202,107.62,230.72,230.65,7.63]
[1759718003503,107.62,230.72,230.65,11.2514366]
[1759718004006,107.62,230.72,230.65,7.63]
[1759718004206,107.62,230.72,230.65,11.2514366]
[1759718004605,3.8998,230.71,230.65,11.2514366]
[1759718004911,3.8998,230.71,230.65,7.63]
[1759718005203,10.7301,230.7,230.65,7.63]
[1759718005800,10.7301,230.7,230.64,11.2514366]
[1759718006602,6.83,230.7,230.64,3.6214366]
[1759718006804,6.83,230.7,230.62,3.6214366]
[1759718007694,3.9006,230.66,230.62,3.6214366]
[1759718007899,3.9006,230.66,230.62,11.2514366]
[1759718008101,10.7306,230.66,230.62,7.63]
[1759718008599,10.7306,230.66,230.62,11.2514366]
[1759718009306,6.83,230.68,230.62,3.6214366]
[1759718009502,6.83,230.68,230.61,3.6214366]
[1759718010005,6.83,230.68,230.6,3.6214366]
[1759718010701,3.9011,230.64,230.6,3.6214366]
[1759718011004,10.7311,230.64,230.6,3.6214366]
[1759718011396,10.7314,230.62,230.6,3.6214366]
[1759718011600,10.7314,230.62,230.59,3.6214366]
[1759718011800,6.83,230.61,230.58,3.6214366]
[1759718011998,10.7316,230.61,230.58,3.6214366]
[1759718012907,10.7316,230.61,230.57,11.2514366]
[1759718013506,6.83,230.6,230.56,3.6214366]
[1759718013807,60.6866,230.63,230.54,3.6214366]
[1759718013808,6.83,230.59,230.54,3.6214366]
[1759718014009,6.83,230.59,230.54,11.5314366]
[1759718014208,6.83,230.59,230.54,7.91]
[1759718014502,1.95421287,230.64,230.53,16.47233669]
[1759718014503,1.95421287,230.64,230.55,3.6214366]
[1759718014705,6.83,230.63,230.55,3.6214366]
[1759718014905,6.83,230.58,230.51,4.80379724]
[1759718015109,107.6,230.57,230.49,4.80379724]
[1759718015306,67.5349,230.56,230.47,7.91]
[1759718016711,3.9031,230.52,230.47,7.91]
[1759718017006,10.7331,230.52,230.47,7.91]
[1759718017215,6.83,230.51,230.47,7.91]
[1759718018309,3.9025,230.55,230.48,7.91]
[1759718018506,6.83,230.57,230.48,7.91]
[1759718018907,60.6994,230.58,230.44,12.71379724]
[1759718019215,10.7329,230.53,230.44,7.91]
[1759718020116,60.7142,230.52,230.42,18.51733453]
[1759718020313,60.7142,230.52,230.39,7.25564052]
[1759718020314,60.7261,230.48,230.39,4.80379724]
[1759718020612,6.83,230.41,230.37,7.91]
[1759718020812,6.83,230.41,230.32,7.91]
[1759718021015,67.5784,230.39,230.28,4.80379724]
[1759718021210,6.83,230.39,230.29,7.91]
[1759718021410,108.44,230.38,230.29,7.91]
[1759718022109,1.95421287,230.33,230.25,12.71379724]
[1759718022310,6.83,230.37,230.25,7.91]
[1759718022614,108.48,230.36,230.25,21.12165133]
[1759718022815,6.83,230.35,230.25,21.12165133]
[1759718023019,6.83,230.34,230.21,0.75575777]
[1759718023214,6.83,230.28,230.19,7.91]
[1759718023415,6.83,230.28,230.11,28.53579544]
[1759718023617,6.83,230.27,230.12,7.91]
[1759718023922,32.02,230.26,230.14,7.91]
[1759718024217,48.35421287,230.31,230.17,3.9089]
[1759718024518,60.7748,230.29,230.13,8.66602868]
[1759718024715,1.95421287,230.26,230.13,7.91]
[1759718024916,6.83,230.25,230.13,7.91]
[1759718025516,25.28,230.27,230.13,7.91]
[1759718025812,37.32,230.29,230.16,7.91]
[1759718026011,58.69176873,230.33,230.17,7.91]
[1759718026215,6.83,230.32,230.17,7.91]
[1759718026414,3.9067,230.31,230.17,7.91]
[1759718026621,6.83,230.32,230.17,7.91]
[1759718026817,80.2,230.31,230.17,7.91]
[1759718027021,108.33,230.32,230.18,7.91]
[1759718027519,108.33,230.32,230.17,3.9089]
[1759718027520,109.54,230.33,230.21,7.62]
[1759718027722,6.83,230.37,230.21,7.62]
[1759718027917,109.58,230.36,230.21,7.62]
[1759718028520,6.83,230.41,230.24,7.62]
[1759718028715,6.83,230.39,230.24,7.62]
[1759718029024,6.83,230.37,230.24,7.62]
[1759718029219,110.29,230.37,230.24,7.62]
[1759718029615,110.29,230.37,230.25,60.7841]
[1759718029616,6.83,230.37,230.25,60.7841]
[1759718029818,57.99,230.4,230.25,7.62]
[1759718030426,57.99,230.4,230.23,60.7896]
[1759718030427,100.04,230.48,230.32,7.62]
[1759718031016,6.83,230.47,230.32,7.62]
[1759718031221,109.8,230.46,230.34,7.62]
[1759718031423,109.8,230.46,230.34,11.5259]
[1759718032730,315.6,230.49,230.37,7.62]
[1759718032930,6.83,230.47,230.37,7.62]
[1759718033728,109.74,230.48,230.37,7.62]
[1759718034827,6.83,230.5,230.39,7.62]
[1759718035031,6.83,230.5,230.38,60.7498]
[1759718035032,6.83,230.56,230.41,7.62]
[1759718035729,6.83,230.56,230.43,3.9044]
[1759718035928,6.83,230.56,230.43,7.62]
[1759718037027,10.7324,230.56,230.43,7.62]
[1759718037527,3.9028,230.53,230.43,7.62]
[1759718037728,6.83,230.52,230.43,7.62]
[1759718038130,6.83,230.58,230.43,7.62]
[1759718038431,6.83,230.55,230.43,7.62]
[1759718038825,109.74,230.54,230.43,7.62]
[1759718039027,3.9031,230.52,230.39,3.9052]
[1759718039230,3.9031,230.52,230.39,7.62]
[1759718040134,3.9031,230.52,230.39,11.5251]
[1759718040326,3.9031,230.52,230.39,24.45539101]
[1759718040735,67.5523,230.49,230.3,7.62]
[1759718041231,6.83,230.43,230.3,7.62]
[1759718041735,3.9047,230.42,230.3,20.37697046]
[1759718042824,6.83,230.43,230.34,7.62]
[1759718043324,6.83,230.48,230.31,60.7677]
[1759718043528,6.83,230.48,230.35,7.62]
[1759718043934,6.83,230.48,230.37,3.9055]
[1759718044135,6.83,230.48,230.38,7.62]
[1759718044725,6.83,230.48,230.34,7.62]
[1759718045031,3.9041,230.46,230.34,7.62]
[1759718046235,10.7344,230.44,230.34,7.62]
[1759718047932,6.83,230.22,230.1,7.62]
[1759718048234,71.31,230.22,230.1,7.62]
[1759718048436,10.7382,230.22,230.1,7.62]
[1759718050034,172.426,230.25,230.02,13.30045017]
[1759718050035,3.9098,230.12,230.02,13.30045017]
[1759718050340,118.65,230.11,230.02,13.30045017]
[1759718050535,6.83,230.07,230.02,13.30045017]
[1759718050736,60.8204,230.12,229.87,4.80379724]
[1759718050737,6.83,230.03,229.87,60.8847]
[1759718050937,6.83,230.03,229.9,68.4976]
[1759718051136,6.83,230.03,229.89,60.8803]
[1759718051137,32.63,230.09,229.94,7.62]
[1759718051334,6.83,230.09,229.95,3.9127]
[1759718051536,62.48,230.14,229.99,60.8528]
[1759718051740,62.48,230.14,230.01,7.62]
[1759718052130,6.83,230.13,230.01,7.62]
[1759718052737,119.27,230.15,230.01,7.62]
[1759718055139,6.83,230.14,229.94,7.62]
[1759718056341,6.83,230.14,229.95,64.7763]
[1759718056546,6.83,230.14,229.96,7.62]
[1759718057044,6.83,230.14,229.98,7.62]
[1759718057339,112.38,230.13,229.98,7.62]
[1759718058447,112.38,230.13,229.97,3.9123]
[1759718058448,119.15,230.14,230.0,7.89]
[1759718059544,6.83,230.14,230.01,64.7602]
[1759718059748,6.83,230.14,230.02,7.89]
[1759718060138,6.83,230.14,230.03,3.9112]
[1759718061147,6.83,230.14,230.02,7.89]
[1759718061541,6.83,230.14,229.97,7.89]
[1759718064745,3.02188728,230.12,229.97,7.89]
[1759718065047,6.85,230.11,229.97,7.89]
[1759718065450,6.85,230.11,229.88,0.75672737]
[1759718065647,6.85,230.11,229.91,7.89]
[1759718066250,10.7601,230.11,229.93,3.9129]
[1759718066447,6.85,230.11,229.93,3.9129]
[1759718066643,63.84268728,230.12,229.91,7.89]
[1759718066644,3.02188728,230.07,229.91,7.89]
[1759718066847,152.8972,230.06,229.86,31.73070572]
[1759718067150,6.85,230.01,229.86,31.73070572]
[1759718067945,6.85,230.01,229.86,35.64480572]
[1759718069353,6.85,230.01,229.86,11.8041]
[1759718069652,6.85,230.01,229.88,7.89]
[1759718070745,6.85,230.01,229.92,3.9131]
[1759718070951,6.85,230.01,229.88,7.89]
[1759718071148,3.02188728,229.95,229.79,7.89]
[1759718071353,6.85,229.94,229.79,7.89]
[1759718072152,6.85,229.94,229.84,7.89]
[1759718072652,3.02188728,229.97,229.84,7.89]
[1759718072953,3.02188728,229.97,229.85,3.9143]
[1759718073754,3.02188728,229.97,229.84,7.89]
[1759718074857,3.02188728,229.97,229.84,11.8045]
[1759718076353,6.86,229.96,229.84,11.8045]
[1759718076950,6.86,229.96,229.84,7.89]
[1759718077945,6.86,229.96,229.87,3.914]
[1759718078347,6.86,229.96,229.84,7.89]
[1759718080670,3.9127,229.95,229.84,7.89]
[1759718080967,6.86,229.96,229.84,7.89]
[1759718081465,6.86,229.96,229.84,11.8044]
[1759718081769,319.32188728,230.02,229.84,7.89]
[1759718081970,118.9,230.01,229.84,7.89]
[1759718082266,3.912,229.99,229.86,3.9142]
[1759718082565,3.912,229.99,229.87,7.54]
[1759718083460,6.86,230.01,229.87,7.54]
[1759718083670,6.86,230.01,229.89,7.54]
[1759718084059,27.04188728,230.06,229.92,60.8662]
[1759718084060,9.88188728,230.06,229.92,60.8662]
[1759718084262,112.18,230.13,229.97,7.54]
[1759718084463,3.9097,230.11,229.97,7.54]
[1759718084657,6.86,230.1,229.97,7.54]
[1759718086774,6.86,230.1,229.98,3.9117]
[1759718087065,6.86,230.1,229.97,7.54]
[1759718088063,112.18,230.13,230.01,11.5413]
[1759718088371,112.18,230.13,230.02,7.63]
[1759718089560,112.18,230.13,230.03,7.63]
[1759718090371,6.85,230.15,230.03,7.63]
[1759718090664,4.06232033,230.22,230.03,7.63]
[1759718090665,118.83,230.21,230.03,7.63]
[1759718091172,118.83,230.21,230.08,7.63]
[1759718092579,118.83,230.21,230.09,3.9099]
[1759718092771,118.83,230.21,230.08,7.63]
[1759718093168,118.83,230.21,230.08,11.54]
[1759718094074,4.06232033,230.22,230.1,7.63]
[1759718094274,6.85,230.25,230.11,60.8157]
[1759718094572,6.85,230.25,230.12,7.63]
[1759718094772,6.85,230.25,230.15,3.9089]
[1759718095174,6.85,230.25,230.12,7.63]
[1759718095475,6.85,230.25,230.14,3.9091]
[1759718095879,6.85,230.25,230.12,11.20436705]
[1759718096270,6.85,230.25,230.12,7.63]
[1759718096676,6.85,230.25,230.12,11.5393]
[1759718097376,3.9074,230.24,230.12,7.63]
[1759718097574,316.42,230.27,230.07,4.80379724]
[1759718097575,60.7911,230.21,230.07,4.80379724]
[1759718097771,60.8095,230.14,229.99,4.82747352]
[1759718097977,3.9105,230.06,229.93,7.63]
[1759718098173,94.34,230.08,229.93,7.63]
[1759718098372,3.9103,230.07,229.93,20.85087147]
[1759718098572,113.22,230.1,229.92,60.8667]
[1759718098776,113.24,230.11,229.94,60.8606]
[1759718098979,113.24,230.11,229.98,7.63]
[1759718099679,113.24,230.11,229.99,3.9116]
[1759718100181,113.24,230.11,229.98,7.63]
[1759718102479,60.82,230.1,229.93,7.63]
[1759718102675,113.24,230.11,229.93,7.63]
[1759718103381,3.9099,230.1,229.93,7.63]
[1759718103980,6.93128728,230.13,229.96,7.63]
[1759718104174,113.04,230.11,229.96,7.63]
[1759718105579,113.04,230.11,229.89,7.63]
[1759718105580,60.8253,230.08,229.89,7.63]
[1759718105783,60.8356,230.04,229.84,7.63]
[1759718105987,3.9114,230.01,229.86,3.9138]
[1759718106171,90.74,230.03,229.86,7.63]
[1759718106375,113.06,230.05,229.86,7.63]
[1759718106579,113.06,230.05,229.91,7.63]
[1759718106775,3.9103,230.07,229.91,7.63]
[1759718106977,113.04,230.06,229.91,7.63]
[1759718107173,3.9106,230.05,229.91,7.63]
[1759718107775,3.02188728,230.08,229.92,60.8665]
[1759718107978,3.02188728,230.13,229.96,7.63]
[1759718108174,3.02188728,230.13,229.99,3.9116]
[1759718108377,3.02188728,230.13,230.0,7.63]
[1759718108782,6.93118728,230.13,230.0,7.63]
[1759718108985,3.02188728,230.13,230.0,7.63]
[1759718109286,60.8083,230.15,230.0,7.63]
[1759718109287,3.9095,230.12,230.0,7.63]
[1759718110185,3.9095,230.12,230.0,11.5414]
[1759718110586,119.95088728,230.15,230.0,11.5414]
[1759718110790,6.93088728,230.15,230.02,3.911]
[1759718110983,119.99088728,230.15,230.02,3.911]
[1759718111285,60.8148,230.12,229.93,11.5425]
[1759718111480,60.8089,230.14,229.93,7.63]
[1759718111686,60.8129,230.13,229.93,7.63]
[1759718111979,88.68,230.14,229.98,7.63]
[1759718112381,88.68,230.14,229.98,11.5417]
[1759718112582,88.68,230.14,229.98,7.63]
[1759718112985,3.9097,230.11,229.98,7.63]
[1759718113184,88.68,230.14,229.98,7.63]
[1759718113488,92.5892,230.14,230.01,3.9112]
[1759718115088,3.9095,230.12,229.98,11.5417]
[1759718115286,3.9095,230.12,229.98,7.63]
[1759718115879,3.9098,230.1,229.98,7.63]
[1759718116089,320.37627357,230.24,230.02,7.63]
[1759718116285,60.7862,230.23,230.04,7.63]
[1759718116990,3.9078,230.22,230.06,3.9104]
[1759718117184,320.37627357,230.24,230.06,3.9104]
[1759718117388,60.7927,230.21,230.04,7.63]
[1759718117589,60.7934,230.2,230.04,7.63]
[1759718118789,113.48,230.19,230.05,3.9106]
[1759718119582,113.48,230.19,229.91,155.70157262]
[1759718119788,60.8052,230.16,229.95,7.7]
[1759718120186,60.7991,230.18,229.97,7.7]
[1759718120387,113.48,230.19,230.02,7.7]
[1759718120687,113.44,230.18,230.02,7.7]
[1759718120889,381.15947357,230.24,230.04,7.7]
[1759718121190,113.44,230.23,230.04,7.7]
[1759718121391,117.3277,230.23,230.11,3.9096]
[1759718121590,113.42,230.23,230.11,7.7]
[1759718121988,113.42,230.23,230.13,3.9092]
[1759718122289,113.42,230.23,230.11,7.7]
[1759718122492,113.42,230.23,230.15,3.9089]
[1759718122687,113.42,230.23,230.15,11.6089]
[1759718123493,3.9069,230.27,230.15,11.6089]
[1759718123695,3.9069,230.27,230.15,7.7]
[1759718127797,3.9064,230.31,230.19,7.7]
[1759718127994,65.80066945,230.36,230.19,7.7]
[1759718128199,113.02,230.35,230.19,7.7]
[1759718128391,3.9061,230.32,230.19,11.6082]
[1759718128697,113.02,230.35,230.19,11.6082]
[1759718130595,113.02,230.35,230.19,24.42208922]
[1759718130994,3.9061,230.32,230.19,24.42208922]
[1759718131894,113.02,230.35,230.19,20.51388922]
[1759718131895,3.9065,230.3,230.19,20.51388922]
[1759718132091,60.7698,230.29,230.14,7.7]
[1759718132296,60.7772,230.26,230.14,7.7]
[1759718132495,173.7172,230.26,230.14,7.7]
[1759718132898,3.909,230.15,230.06,7.7]
[1759718133594,112.9,230.16,230.06,7.7]
[1759718135692,5.04866945,230.3,230.06,7.7]
[1759718135894,5.04866945,230.25,230.1,7.91]
[1759718136192,60.7878,230.22,230.05,7.91]
[1759718136399,111.08,230.21,230.05,7.91]
[1759718136598,65.84206945,230.2,229.99,7.91]
[1759718136804,60.7972,230.19,229.99,7.91]
[1759718136999,3.9093,230.13,230.01,3.9113]
[1759718137199,117.0093,230.13,230.01,3.9113]
[1759718137904,3.9093,230.13,230.01,3.9113]
[1759718138105,117.1293,230.13,230.01,3.9113]
[1759718138302,113.14,230.14,230.03,3.9109]
[1759718139100,113.14,230.15,230.03,3.9109]
[1759718139304,113.18,230.15,230.03,3.9109]
[1759718139601,113.18,230.15,230.05,3.9106]
[1759718140306,113.12,230.16,230.05,3.9106]
[1759718142305,3.9089,230.15,230.02,11.821]
[1759718144301,116.7489,230.15,230.02,11.821]
[1759718144502,112.84,230.15,230.04,3.9107]
[1759718145602,316.16,230.21,229.99,60.8474]
[1759718145603,316.16,230.21,230.07,7.91]
[1759718146005,112.74,230.2,230.07,7.91]
[1759718146209,116.648,230.2,230.09,3.9099]
[1759718146402,428.9,230.21,230.1,7.91]
[1759718146905,316.16,230.21,230.11,3.9094]
[1759718147109,316.16,230.21,230.1,7.91]
[1759718147609,316.16,230.21,230.13,3.9092]
[1759718148811,316.16,230.21,230.1,7.91]
[1759718149909,3.9076,230.23,230.1,7.91]
[1759718150208,112.64,230.25,230.1,7.91]
[1759718151012,112.64,230.25,230.12,3.9093]
[1759718151506,3.9074,230.24,230.14,3.909]
[1759718152211,3.9074,230.24,230.11,3.9094]
[1759718152615,3.9077,230.23,230.11,3.9094]
[1759718153113,112.64,230.25,230.13,3.9092]
[1759718154712,3.9074,230.24,230.13,3.9092]
[1759718154910,112.64,230.25,230.13,3.9092]
[1759718155410,112.64,230.25,230.1,7.91]
[1759718155712,112.64,230.25,230.1,11.8197]
[1759718155913,112.64,230.25,230.1,7.91]
[1759718156516,3.9076,230.23,230.12,3.9094]
[1759718157016,4.11065292,230.28,230.1,7.91]
[1759718157215,112.24,230.25,230.1,7.91]
[1759718157417,112.24,230.25,230.14,11.1691]
[1759718157615,112.24,230.25,230.14,7.26]
[1759718157915,3.9072,230.26,230.14,7.26]
[1759718157916,112.2,230.26,230.14,7.26]
[1759718158321,4.11065292,230.28,230.14,7.26]
[1759718158525,4.11065292,230.28,230.16,7.26]
[1759718158828,41.3,230.32,230.21,11.1678]
[1759718159524,5.04866945,230.37,230.23,3.9074]
[1759718159727,112.16,230.33,230.23,3.9074]
[1759718160426,112.1,230.34,230.23,3.9074]
[1759718160626,112.1,230.34,230.21,7.26]
[1759718161024,3.9059,230.33,230.21,7.26]
[1759718162324,172.8574,230.34,230.17,3.9085]
[1759718162723,3.9066,230.29,230.17,3.9085]
[1759718162923,60.7642,230.31,230.16,7.26]
[1759718163323,3.9069,230.27,230.16,11.1687]
[1759718163727,3.9069,230.27,230.16,24.41543956]
[1759718164130,3.9069,230.27,230.16,20.50673956]
[1759718164935,3.9064,230.3,230.16,20.50673956]
[1759718165136,104.76,230.3,230.17,7.26]
[1759718165327,60.7536,230.35,230.2,11.1679]
[1759718165527,111.86,230.34,230.2,11.1679]
[1759718166234,111.9,230.33,230.2,7.26]
[1759718167028,111.82,230.34,230.24,3.9074]
[1759718167833,3.9052,230.37,230.22,60.7867]
[1759718168034,115.7052,230.37,230.23,7.26]
[1759718168235,3.9052,230.37,230.23,7.26]
[1759718168539,111.78,230.38,230.27,3.9068]
[1759718168840,111.78,230.38,230.26,7.26]
[1759718169336,4.77132068,230.5,230.26,13.45]
[1759718169531,60.7089,230.52,230.3,4.83686255]
[1759718169731,3.9032,230.49,230.33,3.9058]
[1759718170039,3.9032,230.49,230.31,68.0231]
[1759718170439,3.9036,230.47,230.32,3.9059]
[1759718170637,50.08,230.46,230.32,3.9059]
[1759718171840,60.7274,230.45,230.31,7.26]
[1759718172035,60.7368,230.42,230.25,7.26]
[1759718172434,3.9053,230.37,230.25,7.26]
[1759718172740,112.38,230.37,230.25,7.26]
[1759718173143,3.9059,230.33,230.18,7.26]
[1759718173735,3.9059,230.33,230.19,3.9082]
[1759718174132,173.1291,230.37,230.19,3.9082]
[1759718174133,3.9055,230.36,230.19,3.9082]
[1759718174333,60.7434,230.39,230.19,60.7954]
[1759718174641,75.68,230.38,230.2,7.26]
[1759718174835,3.9056,230.35,230.2,7.26]
[1759718175034,43.94,230.34,230.2,7.26]
[1759718175443,112.26,230.33,230.2,7.26]
[1759718175738,3.9063,230.31,230.2,11.168]
[1759718176335,112.26,230.33,230.16,16.62594763]
[1759718176538,60.7648,230.31,230.16,3.9086]
[1759718177344,3.9069,230.27,230.16,3.9086]
[1759718177939,3.9069,230.27,230.15,7.26]
[1759718179340,3.9064,230.3,230.15,7.26]
[1759718179542,5.04866945,230.37,230.22,11.8176]
[1759718179741,5.04866945,230.37,230.22,7.91]
[1759718179742,41.86,230.36,230.22,7.91]
[1759718180541,45.7655,230.36,230.24,3.9073]
[1759718180940,41.86,230.36,230.24,3.9073]
[1759718181340,60.7514,230.36,230.22,7.91]
[1759718181540,112.12,230.35,230.22,7.91]
[1759718182144,116.0257,230.35,230.22,7.91]
[1759718182740,3.9057,230.35,230.23,3.9075]
[1759718182936,65.0857,230.35,230.23,3.9075]
[1759718183142,3.9059,230.33,230.22,7.91]
[1759718183946,3.9064,230.31,230.22,7.91]
[1759718185149,3.9059,230.34,230.22,7.91]
[1759718186946,3.9061,230.32,230.22,7.91]
[1759718187144,60.7564,230.34,230.22,7.91]
[1759718187448,60.7564,230.34,230.18,3.9084]
[1759718188549,3.9065,230.3,230.18,3.9084]
[1759718188950,3.9065,230.3,230.19,7.91]
[1759718192553,3.9065,230.3,230.2,3.9081]
[1759718192753,3.9057,230.34,230.19,7.91]
[1759718193553,3.9057,230.34,230.22,3.9077]
[1759718193853,3.9061,230.32,230.23,7.44]
[1759718194050,68.5,230.35,230.23,7.44]
[1759718196049,3.9064,230.3,230.19,3.9083]
[1759718196947,3.906,230.33,230.21,3.9079]
[1759718197142,3.906,230.33,230.21,7.44]
[1759718197350,115.286,230.33,230.21,7.44]
[1759718198652,115.286,230.33,230.25,3.9072]
[1759718199353,3.9055,230.36,230.25,11.3472]
[1759718199553,111.4,230.35,230.25,11.3472]
[1759718200052,3.9058,230.34,230.25,11.3472]
[1759718200254,111.4,230.35,230.25,7.44]
[1759718200553,111.4,230.35,230.19,7.44]
[1759718201554,3.9062,230.31,230.2,3.908]
[1759718202557,60.7595,230.33,230.19,7.44]
[1759718203255,3.9069,230.28,230.19,11.3481]
[1759718203856,3.01632257,230.34,230.19,7.44]
[1759718204656,3.9064,230.31,230.21,3.9078]
[1759718205051,1.25508452,230.3,230.21,3.9078]
[1759718207258,3.9066,230.29,230.21,3.9078]
[1759718208253,3.9062,230.32,230.21,3.9078]
[1759718208457,1.25508452,230.3,230.21,11.5778]
[1759718209551,5.16158452,230.3,230.21,11.5778]
[1759718210550,65.50562068,230.43,230.28,7.67]
[1759718210849,1.25508452,230.38,230.28,7.67]
[1759718211357,3.9054,230.37,230.28,11.5766]
[1759718211750,3.9054,230.37,230.28,7.67]
[1759718212256,3.9055,230.36,230.28,7.67]
[1759718212451,1.25508452,230.35,230.28,7.67]
[1759718212651,1.25508452,230.35,230.25,3.9072]
[1759718213658,1.25508452,230.32,230.25,3.9072]
[1759718213852,1.25508452,230.32,230.26,3.9069]
[1759718214156,1.25508452,230.35,230.26,3.9069]
[1759718214353,5.16068452,230.35,230.27,7.67]
[1759718214558,5.16068452,230.35,230.27,11.5768]
[1759718216362,3.9056,230.35,230.29,3.9065]
[1759718216557,5.16068452,230.35,230.29,3.9065]
[1759718216861,5.16068452,230.35,230.27,11.5768]
[1759718217364,3.9058,230.34,230.27,11.5768]
[1759718218063,3.9058,230.34,230.27,7.67]
[1759718220264,3.9059,230.33,230.27,7.67]
[1759718220666,3.9059,230.33,230.23,1.25508452]
[1759718220667,1.25508452,230.32,230.23,7.67]
[1759718221061,60.7252,230.46,230.22,4.83686255]
[1759718221062,1.25508452,230.45,230.33,7.67]
[1759718221257,1.25508452,230.42,230.33,7.67]